{"text_format":"3","workbook":"xlsx","n_sheets":2,"sheets":["高校毕业生招聘计划  (2)","招聘计划"],"not_rendered":{"defined_names":4},"read":"whole","date_system":"1900"}

{"sheet":"高校毕业生招聘计划  (2)","index":0,"n_rows":87,"n_cols":14,"rows_kept":87,"hidden":true,"merged":[[0,0,0,3],[1,0,1,11],[2,0,3,0],[2,1,3,1],[2,2,3,2],[2,3,2,7],[2,8,2,10],[2,11,3,11],[2,12,3,12],[2,13,3,13],[4,0,17,0],[17,1,17,10],[18,0,25,0],[25,1,25,10],[26,0,39,0],[39,1,39,10],[40,0,46,0],[46,1,46,10],[47,0,51,0],[51,1,51,10],[52,0,53,0],[53,1,53,10],[54,0,62,0],[62,1,62,10],[63,0,72,0],[72,1,72,10],[73,0,79,0],[79,1,79,10],[80,0,84,0],[84,1,84,10],[86,0,86,10]]}
["附件4-1"]
["云南锡业集团（控股）有限责任公司2022年度高校毕业生招聘计划岗位明细表"]
["总序","序号","用人单位","岗位信息",{"$nulls":4},"岗位条件",null,null,"各单位需求计划","控股公司人力资源部拟定计划","备注"]
[{"$nulls":3},"岗位类别\n","岗位名称","岗位职责（概述）","工作地点","薪酬待遇","专业要求","学历要求","其他要求"]
[1,1,"老厂分公司","管理岗位","法务专员","从事审计、风控、法务等工作","老厂","5-11万元/年","法学类专业","本科",null,1,1]
[null,2,"老厂分公司","工程技术岗位","测量技术","测量专业相关技术管理工作","老厂","4-10万元/年","测绘工程","专科",null,1,1]
[null,3,"老厂分公司","工程技术岗位","测量技术","测量专业相关技术管理工作","老厂","5-11万元/年","测绘工程","本科",null,1,1]
[null,4,"老厂分公司","工程技术岗位","采矿技术","采矿专业相关技术管理工作","老厂","4-10万元/年","采矿工程","专科",null,1,1]
[null,5,"老厂分公司","工程技术岗位","采矿技术","采矿专业相关技术管理工作","老厂","5-11万元/年","采矿工程","本科",null,1,1]
[null,6,"老厂分公司","工程技术岗位","安全管理","安全监督检查及管理工作","老厂","5-11万元/年","安全工程","本科",null,1,1]
[null,7,"老厂分公司","工程技术岗位","工程建设管理员","从事井下、地面工程建设施工管理相关工作","老厂","5-11万元/年","采矿工程、土建工程、工程造价","本科",null,1,1]
[null,8,"老厂分公司","工程技术岗位","分析测试","矿物元素分析测试等工作","老厂","5-11万元/年","工业分析与检验","本科",null,1,1]
[null,9,"老厂分公司","工程技术岗位","地质技术","地质专业相关技术管理工作","老厂","5-11万元/年","地质工程","本科",null,1,1]
[null,10,"老厂分公司","工程技术岗位","电气技术","电气设备相关技术管理工作","老厂","5-11万元/年","电气工程及其自动化","本科",null,1,1]
[null,11,"老厂分公司","工程技术岗位","机械技术","机械设备相关技术管理工作","老厂","5-11万元/年","机械工程及其自动化","本科",null,1,1]
[null,12,"老厂分公司","工程技术岗位","信息化管理","电子信息工程、企业信息化管理","老厂","5-11万元/年","信息化、计算机","本科",null,1,1]
[null,13,"老厂分公司","工程技术岗位","选矿技术","选矿专业相关技术管理工作","老厂","5-11万元/年","矿物加工工程","本科",null,2,2]
[null,"小计1：",{"$nulls":9},{"$f":"SUM(L5:L17)","v":14},{"$f":"SUM(M5:M17)","v":14}]
[2,1,"卡房分公司","工程技术岗位","地质技术员","从事井下地质技术工作","卡房","5-11万元/年","资源勘查工程","本科及以上",null,2,2]
[null,2,"卡房分公司","工程技术岗位","测量技术员","从事井下测量技术工作","卡房","4万-10万/年","测量工程","专科及以上",null,1,1]
[null,3,"卡房分公司","工程技术岗位","采矿技术员","从事井下采矿技术工作","卡房","5-11万元/年","采矿工程","本科及以上",null,3,3]
[null,4,"卡房分公司","工程技术岗位","选矿技术员","从事选矿试验及相关技术工作","卡房","5-11万元/年","矿物加工工程","本科及以上",null,1,1]
[null,5,"卡房分公司","工程技术岗位","机械技术员","从事设备技术管理工作","卡房","5-11万元/年","机械工程及其自动化","本科及以上",null,1,1]
[null,6,"卡房分公司","工程技术岗位","电气技术员","从事电气技术管理工作","卡房","5-11万元/年","电气工程及其自动化","本科及以上",null,1,1]
[null,7,"卡房分公司","管理岗位","法务专员","法律文书起草审核、法律文件及合同管理等工作","卡房","5-11万元/年","法学","本科及以上",null,1,1]
[null,"小计2：",{"$nulls":9},{"$f":"SUM(L19:L25)","v":10},{"$f":"SUM(M19:M25)","v":10}]
[3,1,"文山锌铟","管理岗位","安全环保储备岗","安全环保相关工作","马关","5-11万元/年","安全技术管理、安全工程类、环境工程类专业","本科",null,4,2]
[null,2,"文山锌铟","管理岗位","人力资源储备岗","人力资源部相关工作","马关","5-11万元/年","人力资源管理、工商管理、行政管理、劳动与社会保障、经济学、审计等","本科",null,1,1]
[null,3,"文山锌铟","管理岗位","财务储备岗","财务相关工作","马关","5-11万元/年","财务管理、会计学、统计与会计核算等专业","本科",null,1,1]
[null,5,"文山锌铟","管理岗位","法务储备岗","法务相关工作","马关","5-11万元/年","法学、经济法学、法律、审计等专业","本科",null,1,1]
[null,6,"文山锌铟","管理岗位","市场营销储备岗","市场营销相关工作","马关","5-11万元/年","市场营销、国际经济与贸易、电子商务、网络营销、采购管理、供应链管理、商务策划管理等专业","本科",null,1,1]
[null,7,"文山锌铟","管理岗位","ERP系统技术储备岗","各类信息系统与平台技术管理","马关","5-11万元/年","计算机信息化管理、计算机科学与技术、计算机网络技术","本科及以上",null,2,2]
[null,8,"文山锌铟","工程技术或直接生产岗位","冶金技术储备岗","冶炼技术相关工作","马关","5-11万元/年","冶金工程、冶金技术、有色冶金、金属材料等冶金类专业；应用化学、化学工程与工艺类专业；能源与动力工程","本科",null,14,14]
[null,9,"文山锌铟","工程技术或辅助生产岗位","电气自动化技术储备岗","电气自动化技术相关工作","马关","5-11万元/年","电气自动化、电气工程类专业；计算机、网络工程、通信工程、电自信息工程、自动化控制类专业、电子信息化工程、测控技术与仪器                   ","本科",null,2,2]
[null,10,"文山锌铟","工程技术或辅助生产岗位","电气自动化技术储备岗","电气自动化技术相关工作","马关","4-10万元/年","电气自动化、电气工程类专业；计算机、网络工程、通信工程、电自信息工程、自动化控制类专业、电子信息化工程、测控技术与仪器                   ","专科",null,1,1]
[null,11,"文山锌铟","工程技术或辅助生产岗位","机械技术储备岗","机械技术相关工作","马关","4-10万元/年","机械工程类、机电一体化、焊接技术与自动化、机械设备维修与管理类专业","专科",null,1,1]
[null,12,"文山锌铟","工程技术或辅助生产岗位","机械技术储备岗","机械技术相关工作","马关","5-11万元/年","机械工程类、机电一体化、焊接技术与自动化、机械设备维修与管理类专业","本科",null,2,2]
[null,13,"文山锌铟","辅助生产岗位","化验技术储备岗","化验分析相关工作","马关","5-11万元/年","化学、化验分析、应用化学、化学工程与工艺、分析检测专业","本科",null,2,2]
[null,14,"文山锌铟","辅助生产岗位","冶炼操作班组长培养储备岗","冶炼操作相关工作","马关","4-10万元/年","专业不限（冶金化工、机械类、电气类专业优先） ","专科",null,10,6]
[null,"小计5：",{"$nulls":9},{"$f":"SUM(L27:L39)","v":42},{"$f":"SUM(M27:M39)","v":36}]
[4,1,"锡化工公司","工程技术岗位","产品研发","产品开发、技术改进、技术服务。","昆明 \n个旧","面议","化工、化学、材料等相关专业","博士",null,2,2]
[null,2,"锡化工公司","工程技术岗位","产品研发","产品开发、技术改进、技术服务。","个旧","9～12万/年","化工、化学、材料等相关专业","硕士",null,3,3]
[null,3,"锡化工公司","工程技术岗位","产品研发","产品开发、技术改进、技术服务。","个旧","5-11万元/年","化工、化学、材料等相关专业","本科",null,2,2]
[null,4,"锡化工公司","管理岗位","安全管理","安全管理监督","个旧","5-11万元/年","化工、化学、安全专业","本科及以上",null,1,1]
[null,5,"锡化工公司","市场营销岗位","市场营销","锡化工产品营销及应用技术服务","苏州/佛山/昆明","8～17万/年","市场营销、经济学、应用化学专业","本科及以上",null,5,5,"昆明1人、苏州2人、南海2人"]
[null,6,"锡化工公司","直接生产岗位","生产操作","生产过程控制操作","个旧","4-10万元/年","化工、化学、机械、电气、自动化、机电一体化等相关专业","专科及以上",null,5,"内部调剂"]
[null,"小计6：",{"$nulls":9},{"$f":"SUM(L41:L46)","v":18},{"$f":"SUM(M41:M46)","v":13}]
[5,1,"锡材公司","工程技术岗位","研发员","负责电子锡焊料、锡合金开发和性能测试工作；\n负责科研项目资料及其他技术资料的编写工作；\n熟练掌握金相、SEM、XRD 和 TEM 等专业相关领域相关设备的运用","昆明","按公司薪酬制度执行","材料、化工类相关专业","硕士",null,3,3]
[null,2,"锡材公司","工程技术岗位","研发员","负责电子锡焊料、锡合金开发和性能测试工作；\n负责科研项目资料及其他技术资料的编写工作；\n熟练掌握金相、SEM、XRD 和 TEM 等专业相关领域相关设备的运用","昆明","25-30万/年","材料、化工类相关专业","博士",null,3,3]
[null,3,"锡材公司","市场营销岗位","销售业务员","负责产品市场营销工作及产品回款、市场数据收集及分析，做好客户管理","上海、深圳、成都","8-17万元/年","市场营销、国际经济与贸易、工商管理等相关专业","本科及以上",null,6,6,"上海分公司2人、深圳分公司5人。"]
[null,4,"锡材公司","市场营销岗位","销售助理","负责销售分公司后台服务，订单价格核算，数据统计，会计核算。负责协助销售人员做好客户管理，制定购销合同，并处理好每天客户传真、下达的合同订单","上海、深圳、成都","5-11万元/年","会计、财务管理、市场营销、电子商务等相关专业","本科及以上",null,4,4,"上海分公司2人、深圳分公司1人"]
[null,"小计7：",{"$nulls":9},{"$f":"SUM(L48:L51)","v":16},{"$f":"SUM(M48:M51)","v":16}]
[6,1,"红河投资公司","管理岗位","国际贸易专员","负责国际贸易业务的市场开发；负责来料加工复出口业务的具体操作和执行；负责国际贸易业务的内部、外部相关单位对接工作等。","昆明","7-15万元","国际贸易、国际金融、工商管理等相关专业","本科及以上","有相关实践经验及相关证书者优先",1,1]
[null,"小计9：",{"$nulls":9},{"$f":"SUM(L53:L53)","v":1},{"$f":"SUM(M53:M53)","v":1}]
[7,1,"物流公司","辅助生产岗位","物资采购员","电气设备物资采购","个旧","5-11万元/年","电气工程及其自动化相关专业","本科及以上",null,1,1]
[null,2,"物流公司","辅助生产岗位","物资采购员","化学材料类物资采购","个旧","5-11万元/年","化学、化工工程专业","本科及以上",null,1,1]
[null,3,"物流公司","工程技术岗位","安全环保管理员","负责本公司安全、环保、消防全面监督检查、提出意见，督促整改落实工作；根据公司安全生产的总体规划，参与安全生产方案制定，职业健康安全制定、环境保护目标的制定；督促实施本公司安全管理工作计划等相关工作。","个旧","5-11万元/年","安全工程、环保工程专业","本科及以上",null,1,1]
[null,4,"物流公司","工程技术岗位","机务员","承担厂内设备、通信线路的维护管理；对电路质量进行检查，质量分析，确保设备良好，改善电路质量；编制设备大修、更新计划和技术革新、技术改造方案，制定年、月度维护作业计划；组织维护人员学习业务技能，做好技术培训和考核工作；做好设备维护报表的上报工作等相关工作","个旧","5-11万元/年","机电一体化、电气自动化、电气工程相关专业","本科及以上",null,1,1]
[null,5,"物流公司","管理岗位","法务专员","负责公司法务法务工作","个旧","5-11万元/年","法学","本科及以上","持有法律职业资格证书者优先考虑",1,1]
[null,6,"物流公司","工程技术岗位","物流管理","协助部门进行地区物流方案策划及实施，市场开拓工作，完善各项仓库管理制度、规范作业标准及流程，优化仓储及配送服务","个旧","5-11万元/年","物流工程、物流管理、交通运输、车辆运输专业","本科及以上","有良好的沟通协调能力",1,1]
[null,7,"物流公司","工程技术岗位","信息系统管理员","信息化系统建设与维护","个旧","5-11万元/年","计算机信息管理、计算机应用技术","本科及以上",null,2,2]
[null,8,"物流公司","管理岗位","融资专员","负责对接银行、负责银行类融资工作；负责及时掌握各银行的信贷政策变化和金融创新产品的信息；负责建立、完善公司银行融资台帐，及时更新、分析和上报；负责银行融资业务的后续监控、分析、评估、管理工作，及时进行还款提醒，按时还本付息；负责完成银行融资业务合同等的档案归集工作","个旧","5-11万元/年","金融","本科及以上",null,1,1]
[null,"小计10：",{"$nulls":9},{"$f":"SUM(L55:L62)","v":9},{"$f":"SUM(M55:M62)","v":9}]
[8,1,"研究院公司","工程技术岗位","研发","选矿试验研究、选厂生产调试","个旧","5-11万元/年","矿物加工工程","本科1人、硕士1人、博士1人",null,3,3]
[null,2,"研究院公司","工程技术岗位","研发","矿石工艺矿物学鉴定","个旧","5-11万元/年","地质","本科及以上",null,2,2]
[null,3,"研究院公司","工程技术岗位","研发","负责化工产品的工艺技术改进、化工新产品研发以及工业生产过程中的“三废”治理、高纯材料的研究；","个旧","5-11万元/年","冶金、材料、化工、环保","本科2人、硕士3人、博士2人",null,7,7]
[null,4,"研究院公司","工程技术岗位","研发","标准制修订及市场拓展项目研发；ICP-AES、ICP-MS、高效液相色谱仪等设备分析样品","个旧","5-11万元/年","化学及相关专业","本科1人、硕士1人",null,2,2]
[null,5,"研究院公司","工程技术岗位","选矿设计","从事选矿设计","个旧","5-11万元/年","矿物加工工程","本科",null,2,2]
[null,6,"研究院公司","工程技术岗位","医学X线影像诊断员","X线设备操作、出具X线检查报告、职业性尘肺病诊断、积极认真完成领导临时安排的其他工作任务","个旧","5-11万元/年","医学X线影像诊断学","本科",null,1,0]
[null,7,"研究院公司","工程技术岗位","公共卫生医师","承担公共卫生医师职责，参与职业健康体检、职业病诊断、企业职业卫生相关工作，满足年限能够取得职业病诊断医师资格。积极认真完成领导临时安排的其他工作任务","个旧","5-11万元/年","预防医学（公共卫生）（职业卫生方向）","本科",null,1,0]
[null,8,"研究院公司","工程技术岗位","电气监测","高压试验、能源监测","个旧","5-11万元/年","电气自动化专业","本科",null,2,2]
[null,9,"研究院公司","管理岗位","工程管理","负责土地、建构筑物的资产管理，工程预算结算的编制、审核及年度建设项目的计划编制报送等工作","个旧","5-11万元/年","工程管理、工程造价","本科",null,1,1]
[null,"小计11：",{"$nulls":9},{"$f":"SUM(L64:L72)","v":21},{"$f":"SUM(M64:M72)","v":19}]
[9,1,"研发中心","工程技术岗位","研发团队带头人","负责对锡铟新材料及相关化合物领域进行合理规划，负责新产品、新工艺的研发，编制产品开发计划和平台发展规划；负责或协助团队项目的申报、实施和结题等工作；负责对研发平台产出的科研成果进行梳理，并对有前景的成果提出产业化转化建议","昆明","25-30万/年","材料类、材料工程、冶金、化学、化学工程等相关专业","博士",null,4,4]
[null,2,"研发中心","工程技术岗位","研发人员","负责焊料研究","昆明","8—11万元","金属材料","硕士","第一学历985或者硕士专业排名全国前五",1,1]
[null,3,"研发中心","工程技术岗位","研发人员","负责焊锡膏及助焊剂的研发，或其他锡化学品的研发","昆明","8—11万元","化学与化工类专业、材料物理与化学专业、微电子连接等相关专业","硕士","毕业课题从事与锡相关研究者优先",1,1]
[null,4,"研发中心","工程技术岗位","研发人员","新产品、新工艺的研发，协助项目负责人完成项目材料的编写及研究内容","昆明","8—11万元","金属材料","硕士",null,1,1]
[null,5,"研发中心","工程技术岗位","研发人员","参与焊产业化项目，负责锡材加工产品的开发。","昆明","8—11万元","金属材料制备和塑性成形等","硕士","研发相关背景",1,1]
[null,6,"研发中心","工程技术岗位","研发人员","参与研发基金等项目，协助技术负责人根据课题组项目研究需要，承担相应的粉体、浆料、塑料相关的子课题研究和任务，主要包括文献调研、实验、数据分析与总结，以及科研报告的撰写等工作；协助技术负责人和相关合作单位进行子课题的沟通和监督；","昆明","8—11万元","高分子材料方向","硕士","良好的职业道德、较强的工作责任心；配合项目负责人组织产品需求调研、可行性分析、组织评审、创新立项、优化发展、试点导入及验收评审、结项等;",1,1]
[null,"小计12：",{"$nulls":9},{"$f":"SUM(L74:L79)","v":9},{"$f":"SUM(M74:M79)","v":9}]
[10,1,"数字云锡团队","工程技术岗位","系统开发与运维工程师","负责系统二次开发问题的处理、优化；负责新需求的二次开发、测试、部署；配合ERP与外围系统的集成运维；负责BW、BPC、SAC系统设计、开发、测试；负责对集团全局性业务规则配置进行管理和日常维护，负责对集团系统配置进行管理和日常维护。","昆明","面议","计算机相关专业","硕士",null,4,4]
[null,2,"数字云锡团队","工程技术岗位","大数据工程师","负责锡产业大数据平台设计、分析、运维，一是进行锡产业大数据平台建设需求分析、平台选择、技术架构设计、开发、测试和部署；二是收集、处理和执行统计数据分析、UI设计，提取、分析、呈现数据，通过数据建模、机器学习和算法实现智能分析预测；三是日常运维，保障大数据平台有效运行，确保数据安全，进行数据备份和数据恢复等工作。","昆明","面议","计算机相关专业","硕士及以上",null,3,3]
[null,3,"数字云锡团队","工程技术岗位","网络安全 \n管理员","负责网络规划、网络设备日常维护，确保网络通信传输畅通；负责防火墙、上网行为管理、安全态势感知系统等安全设备策略的规划和维护，安全日志的审计；负责网络安全等级保护，负责制定网络安全管理制度、并监督执行；负责数据中心机房设备或软件新增、调整、登记、使用、报废和统计等资产管理工作，负责软件正版化工作；负责数据中心机房各信息系统服务器的、配电系统、空调系统的安全监控和日常管理，及时排除硬件故障，保障系统安全稳定运行；负责系统数据安全，包括数据备份和恢复策略制定、执行及恢复验证。","昆明","面议","计算机相关专业","硕士",null,1,1]
[null,4,"数字云锡团队","工程技术岗位","智能制造 \n管理员","负责数字矿山、智能冶炼、智能深加工工厂等智能制造、项目建设规划、方案设计、项目实施等；负责推进两化融合贯标、政策争取工作。","昆明","面议","计算机相关专业","硕士",null,1,1]
[null,"小计13：",{"$nulls":9},{"$f":"SUM(L81:L84)","v":9},{"$f":"SUM(M81:M84)","v":9}]
[11,1,"香港公司","市场营销岗","运营中心业务员","市场部业务，包括但不限于锡锭、锡材、有机、无机产品的市场洽谈和合同制作；单证制作、业务台账录入、物流跟踪；客户信息管理；市场分析报告、市场信息收集","香港、国内","5-11万元/年","国际贸易、商务英语","本科",null,1,1]
["合计：",{"$nulls":10},{"$f":"L86+L85+L80+L73+L63+L54+L52+L47+L40+L26+L18","v":150},{"$f":"M86+M85+M80+M73+M63+M54+M52+M47+M40+M26+M18","v":137}]

{"sheet":"招聘计划","index":1,"n_rows":76,"n_cols":11,"rows_kept":76,"merged":[[0,0,0,10],[1,0,2,0],[1,1,2,1],[1,2,2,2],[1,3,1,5],[1,6,1,8],[1,9,2,9],[1,10,2,10],[3,0,16,0],[16,1,16,8],[17,0,24,0],[24,1,24,8],[25,0,33,0],[33,1,33,8],[34,0,39,0],[39,1,39,8],[40,0,43,0],[43,1,43,8],[44,0,45,0],[45,1,45,8],[47,0,47,8],[48,0,56,0],[56,1,56,8],[57,0,64,0],[64,1,64,8],[65,0,71,0],[71,1,71,8],[72,0,74,0],[74,1,74,8],[75,0,75,8]]}
["云南锡业集团（控股）有限责任公司2022年度高校毕业生招聘岗位明细表"]
["总序","序号","用人单位",{"$nulls":3},"岗位条件",null,null,"招聘人数","备注"]
[{"$nulls":3},"岗位名称","岗位职责（概述）","工作地点","专业要求","学历要求","其他要求"]
[1,1,"锡业股份老厂分公司","法务专员","从事审计、风控、法务等工作","个旧","法学类专业","本科",null,1]
[null,2,"锡业股份老厂分公司","测量技术","测量专业相关技术管理工作","个旧","测绘工程","专科",null,1]
[null,3,"锡业股份老厂分公司","测量技术","测量专业相关技术管理工作","个旧","测绘工程","本科",null,1]
[null,4,"锡业股份老厂分公司","采矿技术","采矿专业相关技术管理工作","个旧","采矿工程","专科",null,1]
[null,5,"锡业股份老厂分公司","采矿技术","采矿专业相关技术管理工作","个旧","采矿工程","本科",null,1]
[null,6,"锡业股份老厂分公司","安全管理","安全监督检查及管理工作","个旧","安全工程","本科",null,1]
[null,7,"锡业股份老厂分公司","工程建设管理员","从事井下、地面工程建设施工管理相关工作","个旧","采矿工程、土建工程、工程造价","本科",null,1]
[null,8,"锡业股份老厂分公司","分析测试","矿物元素分析测试等工作","个旧","工业分析与检验","本科",null,1]
[null,9,"锡业股份老厂分公司","地质技术","地质专业相关技术管理工作","个旧","地质工程","本科",null,1]
[null,10,"锡业股份老厂分公司","电气技术","电气设备相关技术管理工作","个旧","电气工程及其自动化","本科",null,1]
[null,11,"锡业股份老厂分公司","机械技术","机械设备相关技术管理工作","个旧","机械工程及其自动化","本科",null,1]
[null,12,"锡业股份老厂分公司","信息化管理","电子信息工程、企业信息化管理","个旧","信息化、计算机","本科",null,1]
[null,13,"锡业股份老厂分公司","选矿技术","选矿专业相关技术管理工作","个旧","矿物加工工程","本科",null,2]
[null,"小计1：",{"$nulls":7},{"$f":"SUM(J4:J16)","v":14}]
[2,1,"锡业股份卡房分公司","地质技术","从事井下地质技术工作","个旧","资源勘查工程","本科及以上",null,2]
[null,2,"锡业股份卡房分公司","测量技术","从事井下测量技术工作","个旧","测量工程","专科及以上",null,1]
[null,3,"锡业股份卡房分公司","采矿技术","从事井下采矿技术工作","个旧","采矿工程","本科及以上",null,3]
[null,4,"锡业股份卡房分公司","选矿技术","从事选矿试验及相关技术工作","个旧","矿物加工工程","本科及以上",null,1]
[null,5,"锡业股份卡房分公司","机械技术","从事设备技术管理工作","个旧","机械工程及其自动化","本科及以上",null,1]
[null,6,"锡业股份卡房分公司","电气技术","从事电气技术管理工作","个旧","电气工程及其自动化","本科及以上",null,1]
[null,7,"锡业股份卡房分公司","法务专员","法律文书起草审核、法律文件及合同管理等工作","个旧","法学","本科及以上",null,1]
[null,"小计2：",{"$nulls":7},{"$f":"SUM(J18:J24)","v":10}]
[3,1,"云锡文山锌铟冶炼公司","安全环保储备岗","安全环保相关工作","文山马关","安全技术管理、安全工程类、环境工程类专业","本科",null,1]
[null,2,"云锡文山锌铟冶炼公司","冶金技术储备岗","冶炼技术相关工作","文山马关","冶金工程、冶金技术、有色冶金、金属材料等冶金类专业；应用化学、化学工程与工艺类专业；能源与动力工程","本科",null,8]
[null,3,"云锡文山锌铟冶炼公司","电气自动化技术储备岗","电气自动化技术相关工作","文山马关","电气自动化、电气工程类专业；计算机、网络工程、通信工程、电自信息工程、自动化控制类专业、电子信息化工程、测控技术与仪器","本科",null,1]
[null,4,"云锡文山锌铟冶炼公司","电气自动化技术储备岗","电气自动化技术相关工作","文山马关","电气自动化、电气工程类专业；计算机、网络工程、通信工程、电自信息工程、自动化控制类专业、电子信息化工程、测控技术与仪器","专科",null,1]
[null,5,"云锡文山锌铟冶炼公司","机械技术储备岗","机械技术相关工作","文山马关","机械工程类、机电一体化、焊接技术与自动化、机械设备维修与管理类专业","专科",null,1]
[null,6,"云锡文山锌铟冶炼公司","机械技术储备岗","机械技术相关工作","文山马关","机械工程类、机电一体化、焊接技术与自动化、机械设备维修与管理类专业","本科",null,1]
[null,7,"云锡文山锌铟冶炼公司","化验技术储备岗","化验分析相关工作","文山马关","化学、化验分析、应用化学、化学工程与工艺、分析检测专业","本科",null,1]
[null,8,"云锡文山锌铟冶炼公司","冶炼操作班组长培养储备岗","冶炼操作相关工作","文山马关","专业不限（冶金化工、机械类、电气类专业优先）","专科",null,6]
[null,"小计3：",{"$nulls":7},{"$f":"SUM(J26:J33)","v":20}]
[4,1,"云锡锡化工公司","产品研发","产品开发、技术改进、技术服务。","昆明 \n个旧","化工、化学、材料等相关专业","博士",null,2]
[null,2,"云锡锡化工公司","产品研发","产品开发、技术改进、技术服务。","个旧","化工、化学、材料等相关专业","硕士",null,3]
[null,3,"云锡锡化工公司","产品研发","产品开发、技术改进、技术服务。","个旧","化工、化学、材料等相关专业","本科",null,2]
[null,4,"云锡锡化工公司","安全管理","安全管理监督","个旧","化工、化学、安全专业","本科及以上",null,1]
[null,5,"云锡锡化工公司","市场营销","锡化工产品营销及应用技术服务","苏州/佛山/昆明","市场营销、经济学、应用化学专业","本科及以上",null,5]
[null,"小计4：",{"$nulls":7},{"$f":"SUM(J35:J39)","v":13}]
[5,1,"云锡锡材公司","研发员","负责电子锡焊料、锡合金开发和性能测试工作；负责科研项目资料及其他技术资料的编写工作；熟练掌握金相、SEM、XRD 和 TEM 等专业相关领域相关设备的运用","昆明","材料、化工类相关专业","硕士",null,3]
[null,2,"云锡锡材公司","研发员","负责电子锡焊料、锡合金开发和性能测试工作；负责科研项目资料及其他技术资料的编写工作；熟练掌握金相、SEM、XRD 和 TEM 等专业相关领域相关设备的运用","昆明","材料、化工类相关专业","博士",null,3]
[null,3,"云锡锡材公司","应用服务技术员","熟悉公司产品及生产工艺，负责产品开发及产品性能改进；产品售前售中售后服务，产品认证测试、客户应用端技术支持、产品应用场景故障排除、产品性能及稳定性提升改进反馈、新客户开发等","昆明","材料、化工等相关专业","本科及以上",null,6]
[null,"小计5：",{"$nulls":7},{"$f":"SUM(J41:J43)","v":12}]
[6,1,"云锡（红河）投资发展有限公司","国际贸易专员","负责国际贸易业务的市场开发；负责来料加工复出口业务的具体操作和执行；负责国际贸易业务的内部、外部相关单位对接工作等。","昆明","国际贸易、国际金融、工商管理等相关专业","硕士及以上","有相关实践经验及相关证书者优先",1]
[null,"小计6：",{"$nulls":7},{"$f":"SUM(J45:J45)","v":1}]
[7,1,"云锡（香港）资源有限公司","运营中心业务员","市场部业务，包括但不限于锡锭、锡材、有机、无机产品的市场洽谈和合同制作；单证制作、业务台账录入、物流跟踪；客户信息管理；市场分析报告、市场信息收集","香港、国内","国际贸易、商务英语","本科",null,1]
["小计7：",{"$nulls":8},1]
[8,1,"云锡物流公司","物资采购员","电气设备物资采购","个旧","电气工程及其自动化相关专业","本科及以上",null,1]
[null,2,"云锡物流公司","物资采购员","化学材料类物资采购","个旧","化学、化工工程专业","本科及以上",null,1]
[null,3,"云锡物流公司","安全环保管理员","负责本公司安全、环保、消防全面监督检查、提出意见，督促整改落实工作；根据公司安全生产的总体规划，参与安全生产方案制定，职业健康安全制定、环境保护目标的制定；督促实施本公司安全管理工作计划等相关工作。","个旧","安全工程、环保工程专业","本科及以上",null,1]
[null,4,"云锡物流公司","机务员","承担厂内设备、通信线路的维护管理；对电路质量进行检查，质量分析，确保设备良好，改善电路质量；编制设备大修、更新计划和技术革新、技术改造方案，制定年、月度维护作业计划；组织维护人员学习业务技能，做好技术培训和考核工作；做好设备维护报表的上报工作等相关工作","个旧","机电一体化、电气自动化、电气工程相关专业","本科及以上",null,1]
[null,5,"云锡物流公司","法务专员","负责公司法务法务工作","个旧","法学","本科及以上","持有法律职业资格证书者优先考虑",1]
[null,6,"云锡物流公司","物流管理员","协助部门进行地区物流方案策划及实施，市场开拓工作，完善各项仓库管理制度、规范作业标准及流程，优化仓储及配送服务","个旧","物流工程、物流管理、交通运输、车辆运输专业","本科及以上","有良好的沟通协调能力",1]
[null,7,"云锡物流公司","信息系统管理员","信息化系统建设与维护","个旧","计算机信息管理、计算机应用技术","本科及以上",null,2]
[null,8,"云锡物流公司","融资专员","负责对接银行、负责银行类融资工作；负责及时掌握各银行的信贷政策变化和金融创新产品的信息；负责建立、完善公司银行融资台帐，及时更新、分析和上报；负责银行融资业务的后续监控、分析、评估、管理工作，及时进行还款提醒，按时还本付息；负责完成银行融资业务合同等的档案归集工作","个旧","金融","本科及以上",null,1]
[null,"小计8：",{"$nulls":7},{"$f":"SUM(J49:J56)","v":9}]
[9,1,"云锡研究院公司","研发人员","选矿试验研究、选厂生产调试","个旧","矿物加工工程","本科1人、硕士1人、博士1人",null,3]
[null,2,"云锡研究院公司","研发人员","矿石工艺矿物学鉴定","个旧","地质","本科及以上",null,2]
[null,3,"云锡研究院公司","研发人员","负责化工产品的工艺技术改进、化工新产品研发以及工业生产过程中的“三废”治理、高纯材料的研究；","个旧","冶金、材料、化工、环保","本科2人、硕士3人、博士2人",null,7]
[null,4,"云锡研究院公司","研发人员","标准制修订及市场拓展项目研发；ICP-AES、ICP-MS、高效液相色谱仪等设备分析样品","个旧","化学及相关专业","本科1人、硕士1人",null,2]
[null,5,"云锡研究院公司","选矿设计","从事选矿设计","个旧","矿物加工工程","本科",null,2]
[null,6,"云锡研究院公司","电气监测","高压试验、能源监测","个旧","电气自动化专业","本科",null,2]
[null,7,"云锡研究院公司","工程管理","负责土地、建构筑物的资产管理，工程预算结算的编制、审核及年度建设项目的计划编制报送等工作","个旧","工程管理、工程造价","本科",null,1]
[null,"小计9：",{"$nulls":7},{"$f":"SUM(J58:J64)","v":19}]
[10,1,"云锡研发中心","研发团队带头人","负责对锡铟新材料及相关化合物领域进行合理规划，负责新产品、新工艺的研发，编制产品开发计划和平台发展规划；负责或协助团队项目的申报、实施和结题等工作；负责对研发平台产出的科研成果进行梳理，并对有前景的成果提出产业化转化建议","昆明","材料类、材料工程、冶金、化学、化学工程等相关专业","博士",null,4]
[null,2,"云锡研发中心","研发人员","负责焊料研究","昆明","金属材料","硕士",null,1]
[null,3,"云锡研发中心","研发人员","负责焊锡膏及助焊剂的研发，或其他锡化学品的研发","昆明","化学与化工类专业、材料物理与化学专业、微电子连接等相关专业","硕士","毕业课题从事与锡相关研究者优先",1]
[null,4,"云锡研发中心","研发人员","新产品、新工艺的研发，协助项目负责人完成项目材料的编写及研究内容","昆明","金属材料","硕士",null,1]
[null,5,"云锡研发中心","研发人员","参与焊产业化项目，负责锡材加工产品的开发。","昆明","金属材料制备和塑性成形等","硕士","研发相关背景",1]
[null,6,"云锡研发中心","研发人员","参与研发基金等项目，协助技术负责人根据课题组项目研究需要，承担相应的粉体、浆料、塑料相关的子课题研究和任务，主要包括文献调研、实验、数据分析与总结，以及科研报告的撰写等工作；协助技术负责人和相关合作单位进行子课题的沟通和监督；","昆明","高分子材料方向","硕士","良好的职业道德、较强的工作责任心。",1]
[null,"小计10：",{"$nulls":7},{"$f":"SUM(J66:J71)","v":9}]
[11,1,"数字云锡团队","系统开发与运维工程师","负责系统二次开发问题的处理、优化；负责新需求的二次开发、测试、部署；配合ERP与外围系统的集成运维；负责BW、BPC、SAC系统设计、开发、测试；负责对集团全局性业务规则配置进行管理和日常维护，负责对集团系统配置进行管理和日常维护。","昆明","计算机相关专业","硕士及以上",null,2]
[null,2,"数字云锡团队","大数据工程师","负责锡产业大数据平台设计、分析、运维，一是进行锡产业大数据平台建设需求分析、平台选择、技术架构设计、开发、测试和部署；二是收集、处理和执行统计数据分析、UI设计，提取、分析、呈现数据，通过数据建模、机器学习和算法实现智能分析预测；三是日常运维，保障大数据平台有效运行，确保数据安全，进行数据备份和数据恢复等工作。","昆明","计算机相关专业","硕士及以上",null,1]
[null,"小计11：",{"$nulls":7},{"$f":"SUM(J73:J74)","v":3}]
["合计：",{"$nulls":8},{"$f":"J47+J75+J72+J65+J57+J46+J44+J40+J34+J25+J17","v":111}]